Cogmind - Beta 14 @@@ ROGUE MODE // 2024.08.13 @ 06:21:11 Player: Cereal Killer Result: Destroyed by B-75 Beast with Magnetic Acceleration Cannon Performance ------------- Evolutions (5) 2500 Regions Visited (7) 1400 Robots Destroyed (66) 330 Value Destroyed (1955) 1955 Prototype IDs (13) 260 Alien Tech Used (0) 0 Bonus (262) 262 TOTAL SCORE: 6707 Bonus ------- Registered with UFD 300 Friendly Fire -38 Cogmind --------- Core Integrity 0/1000 Matter 229/300 Energy 99/100 System Corruption 3% Temperature Warning (333) Movement Core (50) Location -5/Upper Caves Parts ------- > --- POWER (2) -------- (None) > --- PROPULSION (2) --- (None) > --- UTILITY (9) ------ (None) > --- WEAPON (4) ------- (None) > --- INVENTORY (5) ---- Improved Cooling System Arc Projector Wave Gun Improved Remote Datajack Multitool Peak State ------------ > --- POWER ------------ Improved Deuterium Engine Fusion Compressor > --- PROPULSION ------- Armored Huge Wheel > --- UTILITY ---------- Improved Coolant Injector Large Storage Unit Advanced Sensor Array Improved Weapon Cycler Phase Shifter Improved Medium Armor Plating Hacking Suite Makeshift System Shield A0-MCA's Component Scanner > --- WEAPON ----------- Phase Cannon Improved KE Penetrator Junk Cannon > --- INVENTORY -------- Subdweller Power Source Subdweller Monowheel Compact Battery Large Matter Pod Surveybot 17 Chip System Shield Improved Corruption Screen Makeshift System Restoration Module Makeshift System Restoration Module Proton Cannon Subdweller Shrapnel Launcher CPS Tube CPS Tube Multitool Makeshift Sword [Rating: 89] Favorites ----------- Power Improved Deuterium Engine Engine Improved Deuterium Engine Power Core Fusion Compressor Propulsion Wheel Treads Medium Treads Wheel Wheel Utility Large Storage Unit Device Improved Heat Sink Storage Large Storage Unit Processor A0-MCA's Component Scanner Hackware Makeshift System Shield Protection Medium Reactive Plating Weapon Subdweller Machine Gun Energy Gun Riot Gun Energy Cannon Phase Cannon Ballistic Gun Subdweller Machine Gun Ballistic Cannon Hypervelocity Gauss Cannon Launcher Long-range Missile Launcher Special Weapon Junk Cannon Slashing Weapon Makeshift Sword Build | -11 -10 -10 -7 -7 -5 -5 -5 ------- Run | Yrd Mat Sub Rec Scr Fac Upp Upp Slots Evolved 10 | . . . . . 10 . . Power 1 | . . . . . 1 . . Propulsion . | . . . . . . . . Utility 7 | . . . . . 7 . . Weapon 2 | . . . . . 2 . . Parts Attached 87 | 5 7 11 1 5 44 12 2 Power 10 | . 1 1 . 1 6 1 . Engine 6 | . 1 1 . 1 2 1 . Core 4 | . . . . . 4 . . Reactor . | . . . . . . . . Propulsion 14 | 2 1 2 . 2 4 3 . Treads 1 | . . . . . . 1 . Leg . | . . . . . . . . Wheel 13 | 2 1 2 . 2 4 2 . Hover . | . . . . . . . . Flight . | . . . . . . . . Utility 33 | 1 2 3 1 1 20 4 1 Device 14 | . . . . . 12 2 . Storage 3 | 1 1 . . . 1 . . Processor 7 | . . 2 . 1 2 1 1 Hackware 3 | . . . . . 3 . . Protection 6 | . 1 1 1 . 2 1 . Artifact . | . . . . . . . . Weapon 30 | 2 3 5 . 1 14 4 1 Energy Gun 6 | 1 1 2 . . 2 . . Energy Cannon 2 | . . . . . 2 . . Ballistic Gun 9 | 1 . 2 . . 5 1 . Ballistic Cannon 2 | . . . . . 1 1 . Launcher 5 | . 2 1 . . . 2 . Special Weapon 5 | . . . . 1 3 . 1 Impact Weapon . | . . . . . . . . Slashing Weapon 1 | . . . . . 1 . . Piercing Weapon . | . . . . . . . . Special Melee Weapon . | . . . . . . . . Unidentified Prototypes . | . . . . . . . . Parts Lost 46 | . 1 7 . . 18 11 9 Power 5 | . . . . . 3 2 . Propulsion 9 | . 1 2 . . 1 4 1 Utility 18 | . . 3 . . 7 3 5 Weapon 14 | . . 2 . . 7 2 3 Highest Loss Streak 15 | . 1 3 . . 15 5 9 To Critical Strikes 1 | . . . . . 1 . . Average Slot Usage (%) 88 | . 97 94 93 88 86 82 49 Engine 10 | . 12 14 14 14 3 8 5 Core 1 | . . . . . 5 . . Wheel 16 | . 27 27 28 21 6 6 . Device 7 | . . . . . 20 8 11 Storage 10 | . 14 14 14 14 5 5 5 Processor 6 | . . 2 . 5 8 16 17 Hackware 3 | . . . . . 9 5 2 Protection 6 | . 13 6 7 8 2 3 . Energy Gun 6 | . 9 9 14 8 1 2 . Ballistic Gun 7 | . 13 11 14 8 2 4 . Launcher 2 | . 4 7 . . . 4 . Special Weapon 2 | . . . . 5 4 . . Slashing Weapon 1 | . . . . . 2 5 2 Peak Build Rating 89 | 5 8 14 18 38 89 80 75 Average Rating 41 | 3 6 10 16 25 76 67 53 On Entrance 29 | . 5 8 14 18 38 79 75 Naked Turns . | . . . . . . . . Heaviest Build 82 | 9 34 36 52 57 82 71 66 Greatest Support 40 | 20 20 40 40 40 30 20 10 Greatest Overweight (x) 20 | . 3 3 1 2 20 6 6 Average Overweight (x) 1 | . . . . 1 2 5 3 Largest Inventory Capacity 15 | 8 15 15 15 15 15 15 15 Average Capacity 14 | 7 10 15 15 15 15 15 15 Most Carried 15 | 6 9 15 15 15 15 15 11 Average Carried 13 | 3 7 13 14 14 14 11 10 Final Capacity 15 | 8 15 15 15 15 15 15 5 Final Carried 15 | 5 8 15 15 15 15 11 5 Class Distribution -------------------- 58% | Mutant 13% | Scavenger-Gunner 11% | Hacker-Tank 7% | Gunner 3% | Scavenger-Mutant 3% | Hacker-Skirmisher Dominant Class ---------------- Mutant | -10/Materials Mutant | -10/Subcaves Mutant | -7/Recycling Mutant | -7/Scraptown Hacker-Tank | -5/Factory Gunner | -5/Upper Caves Gunner | -5/Upper Caves Resources | -11 -10 -10 -7 -7 -5 -5 -5 ----------- Run | Yrd Mat Sub Rec Scr Fac Upp Upp Matter Collected 2478 | 184 403 362 . 60 838 628 3 Remotely . | . . . . . . . . Salvage Created 1671 | . 391 221 . . 717 288 54 Parts 124 | . 32 14 . . 58 16 4 Haulers Intercepted . | . . . . . . . . Recyclers Shooed 1 | . . . . . 1 . . Parts Field Recycled . | . . . . . . . . Retrieved Matter . | . . . . . . . . Parts Self-Destructed 26 | . . 9 . . . 15 2 Prevented . | . . . . . . . . Kills | -11 -10 -10 -7 -7 -5 -5 -5 ------- Run | Yrd Mat Sub Rec Scr Fac Upp Upp Combat Hostiles Destroyed 52 | . 12 12 . . 15 12 1 Melee 2 | . . . . . 2 . . Guns 32 | . 9 6 . . 6 10 1 Cannons 5 | . . . . . 5 . . AOE 11 | . 3 6 . . . 2 . Classes Destroyed 12 | . 5 3 . . 3 1 . Worker 3 | . 1 . . . 2 . . Builder 1 | . . . . . 1 . . Tunneler 2 | . 2 . . . . . . Turret 2 | . . 2 . . . . . Watcher 6 | . 3 . . . 3 . . Swarmer 30 | . 6 7 . . 8 9 . Grunt 8 | . 6 1 . . . . 1 Sentry 1 | . . 1 . . . . . Hunter 5 | . . . . . 5 . . Programmer 4 | . . . . . 2 2 . Behemoth 1 | . . . . . . 1 . Subdweller 3 | . . 3 . . . . . Decomposer 1 | . . . . . . 1 . Best Kill Streak 6 | . 5 6 . . 4 5 1 Combat Bots Only 5 | . 5 4 . . 4 5 1 Max Kills in Single Turn 2 | . 2 2 . . 2 1 1 Gunslinging . | . . . . . . . . Exploded 2 | . 2 2 . . . 1 . Melee 1 | . . . . . 1 . . Uniques/NPCs Destroyed . | . . . . . . . . Combat | -11 -10 -10 -7 -7 -5 -5 -5 -------- Run | Yrd Mat Sub Rec Scr Fac Upp Upp Hostile Shots Fired 470 | . 29 74 . . 205 129 33 Missed 121 | . 7 26 . . 43 38 7 Damage Taken 5872 | . 243 663 . . 2837 1454 675 Core 1192 | . 34 141 . . 509 182 326 Absorbed by Shields . | . . . . . . . . Ignored by Resistances 41 | . . . . . . . 41 Core Remaining (%) 65 | 100 . . . 30 . . . Volleys Fired 169 | . 41 25 . . 57 40 6 Largest 4 | . 2 2 . . 4 3 2 Hottest 188 | . 83 83 . . 188 157 94 Shots Fired 314 | . 68 46 . . 121 70 9 Gun 185 | . 51 37 . . 48 47 2 Cannon 64 | . . . . . 57 1 6 Launcher 48 | . 17 9 . . . 22 . Special 17 | . . . . . 16 . 1 Kinetic 139 | . 24 24 . . 58 25 8 Thermal 99 | . 27 9 . . 40 23 . Explosive 48 | . 17 9 . . . 22 . Electromagnetic 11 | . . 4 . . 7 . . Impact 14 | . . . . . 14 . . Robot Hit Streak 14 | . 10 14 . . 7 6 3 Robot Miss Streak 3 | . 2 3 . . 3 3 2 Penetration Max 1 | . . . . . 1 1 1 Secondary Targets 3 | . . 1 . . . 2 . Max Gunslinging Chain 1 | . . 1 . . . 1 . Shots Hit Robots 176 | . 38 32 . . 73 28 5 Core Hits 97 | . 27 22 . . 27 18 3 Critical Kills 8 | . . . . . 4 3 1 Critical Parts Destroyed 10 | . 1 . . . 5 2 2 Critical Strikes 21 | . 2 . . . 11 5 3 Burn 1 | . 1 . . . . . . Destroy 16 | . 1 . . . 7 5 3 Smash 2 | . . . . . 2 . . Sever 2 | . . . . . 2 . . Melee Attacks 18 | . . . . . 17 1 . Impact . | . . . . . . . . Slashing 18 | . . . . . 17 1 . Piercing . | . . . . . . . . Sneak Attacks 3 | . . . . . 2 1 . Combat Hostiles . | . . . . . . . . Follow-up Attacks . | . . . . . . . . Damage Inflicted 6160 | . 763 1026 . . 2244 1997 130 Guns 2396 | . 471 551 . . 587 712 75 Cannons 742 | . . . . . 687 . 55 Explosions 1976 | . 292 475 . . . 1209 . Melee 555 | . . . . . 479 76 . Ramming . | . . . . . . . . Kinetic 1821 | . 208 413 . . 664 406 130 Thermal 1227 | . 263 69 . . 589 306 . Explosive 1976 | . 292 475 . . . 1209 . Electromagnetic 90 | . . 69 . . 21 . . Impact 491 | . . . . . 491 . . Slashing 555 | . . . . . 479 76 . Piercing . | . . . . . . . . Highest Corruption 11 | . . . . . 11 3 3 Average Corruption 3 | . . . . . 3 2 3 Corruption Purged 12 | . . . . . 12 . . Corruption Blocked . | . . . . . . . . Effects 47 | . . . . . 36 11 . Message Errors 15 | . . . . . 13 2 . Matter Fused 5 | . . . . . 5 . . Heat Flow Errors 7 | . . . . . 5 2 . Energy Discharges 4 | . . . . . 2 2 . Parts Fused 3 | . . . . . 3 . . Data Loss (minor) 6 | . . . . . 3 3 . Data Loss (major) 6 | . . . . . 4 2 . Misfires 1 | . . . . . 1 . . Overload Shots . | . . . . . . . . Overflow Damage 296 | . . 2 . . 263 31 . Projectiles 195 | . . . . . 195 . . Explosions 33 | . . 2 . . . 31 . Melee 68 | . . . . . 68 . . Knockbacks 8 | . . . . . 5 . 3 Impact 2 | . . . . . 2 . . Kinetic 5 | . . . . . 3 . 2 Secondary 1 | . . . . . . . 1 Self-Inflicted Damage 112 | . . . . . . 112 . Shots 5 | . . . . . . 5 . Rammed . | . . . . . . . . Targets Rammed . | . . . . . . . . Kicked . | . . . . . . . . Crushed . | . . . . . . . . Highest Temperature 369 | . 156 14 . . 369 179 44 Average Temperature 58 | . 43 5 . . 80 25 18 Received Heat Transfer 847 | . 111 237 . . . 48 451 Siege Activations . | . . . . . . . . Robots Corrupted 3 | . . . . . 3 . . Combat Hostiles 2 | . . . . . 2 . . Parts Fried 7 | . . 1 . . 6 . . Impact Corruptions 5 | . . . . . 5 . . Robots Melted . | . . . . . . . . Combat Hostiles . | . . . . . . . . Parts Melted 3 | . 2 1 . . . . . Heat Transferred 2146 | . 814 185 . . 703 444 . Parts Sabotaged . | . . . . . . . . Parts Stolen . | . . . . . . . . Parts Stripped . | . . . . . . . . Power Chain Reactions . | . . . . . . . . Alert | -11 -10 -10 -7 -7 -5 -5 -5 ------- Run | Yrd Mat Sub Rec Scr Fac Upp Upp Peak Influence 274 | . 242 . 8 . 274 . . Initial 8 | . . . 8 . . . . Average 99 | . 125 . 8 . 104 . . Maximum Alert Level 1 | . 1 . . . 1 . . Low Security (%) 78 | 100 78 . 100 . 75 . . Level 1 21 | . 21 . . . 24 . . Level 2 . | . . . . . . . . Level 3 . | . . . . . . . . Level 4 . | . . . . . . . . Level 5 . | . . . . . . . . High Security . | . . . . . . . . Max Security . | . . . . . . . . Squads Dispatched 7 | . 2 . . . 5 . . Investigation 5 | . 1 . . . 4 . . Extermination 1 | . . . . . 1 . . Reinforcement 1 | . 1 . . . . . . Assault . | . . . . . . . . Garrison . | . . . . . . . . Intercept . | . . . . . . . . Searches Triggered . | . . . . . . . . Construction Impeded . | . . . . . . . . Haulers Reinforced . | . . . . . . . . Active Scanning Responses . | . . . . . . . . Cargo Convoy Interrupts . | . . . . . . . . Stealth | -11 -10 -10 -7 -7 -5 -5 -5 --------- Run | Yrd Mat Sub Rec Scr Fac Upp Upp Distress Signals 3 | . 2 . . . 1 . . Communications Jammed . | . . . . . . . . Distress Signals . | . . . . . . . . Times Spotted 68 | . 19 11 . . 22 12 4 Peak Tracking Total 6 | . 4 6 . . 6 5 4 Tactical Retreats 7 | . 2 . . . 4 1 . Traps | -11 -10 -10 -7 -7 -5 -5 -5 ------- Run | Yrd Mat Sub Rec Scr Fac Upp Upp Traps Triggered 6 | . 1 2 . . 3 . . Indirectly . | . . . . . . . . Trap Hack Attempts . | . . . . . . . . Triggered . | . . . . . . . . Disarmed 4 | . 3 . . . 1 . . Reprogrammed . | . . . . . . . . Reused . | . . . . . . . . Traps Extracted . | . . . . . . . . Installed . | . . . . . . . . Triggered . | . . . . . . . . Machines | -11 -10 -10 -7 -7 -5 -5 -5 ---------- Run | Yrd Mat Sub Rec Scr Fac Upp Upp Machines Disabled 6 | . 1 4 . . 1 . . Max in Single Turn 2 | . 1 2 . . 1 . . Garrison Access 2 | . . . . . 2 . . Machines Repaired . | . . . . . . . . Machines Dismantled . | . . . . . . . . Machines Sabotaged . | . . . . . . . . Overloaded Fab Kills . | . . . . . . . . Hacking | -11 -10 -10 -7 -7 -5 -5 -5 --------- Run | Yrd Mat Sub Rec Scr Fac Upp Upp Machines Accessed 22 | . 6 . 1 4 11 . . Terminals 10 | . 6 . 1 . 3 . . Fabricators 2 | . . . . . 2 . . Repair Stations 1 | . . . . . 1 . . Recycling Units 3 | . . . . . 3 . . Scanalyzers . | . . . . . . . . Garrison Access 2 | . . . . . 2 . . Total Hacks 80 | . 15 . 2 38 25 . . Successful 59 | . 6 . . 38 15 . . Failed 20 | . 8 . 2 . 10 . . Catastrophic 5 | . 1 . . . 4 . . Database Lockouts 1 | . 1 . . . . . . Manual 16 | . 5 . . . 11 . . Terminals 28 | . 15 . 2 . 11 . . Fabricators 6 | . . . . . 6 . . Repair Stations 2 | . . . . . 2 . . Recycling Units 4 | . . . . . 4 . . Scanalyzers . | . . . . . . . . Garrison Access 2 | . . . . . 2 . . Terminal Hacks 49 | . 6 . . 38 5 . . Record 38 | . . . . 38 . . . Part Schematic 1 | . . . . . 1 . . Robot Analysis 2 | . 2 . . . . . . Prototype ID Bank 2 | . 2 . . . . . . Terminal Index 1 | . . . . . 1 . . Locate Traps 2 | . 1 . . . 1 . . Disarm Traps 2 | . 1 . . . 1 . . Zone Layout 1 | . . . . . 1 . . Fabricator Hacks 1 | . . . . . 1 . . Network Status 1 | . . . . . 1 . . Repair Station Hacks 1 | . . . . . 1 . . Scan Component 1 | . . . . . 1 . . Recycling Unit Hacks . | . . . . . . . . Scanalyzer . | . . . . . . . . Garrison Access Hacks 2 | . . . . . 2 . . Seal Access 2 | . . . . . 2 . . Unauthorized Hacks 6 | . . . . . 6 . . Terminals 2 | . . . . . 2 . . Botnet 2 | . . . . . 2 . . Fabricators 1 | . . . . . 1 . . Haulers 1 | . . . . . 1 . . Repair Stations 3 | . . . . . 3 . . Recycling Units . | . . . . . . . . Fedlink 3 | . . . . . 3 . . Scanalyzers . | . . . . . . . . Garrison Access . | . . . . . . . . Data Cores Recovered . | . . . . . . . . Used . | . . . . . . . . Hacking Detections 13 | . 6 . 1 . 6 . . Full Trace Events . | . . . . . . . . Feedback Events . | . . . . . . . . Feedback Blocked . | . . . . . . . . Robot Schematics Acquired . | . . . . . . . . Robots Built . | . . . . . . . . Authchips . | . . . . . . . . Time . | . . . . . . . . Total Robot Build Rating . | . . . . . . . . Part Schematics Acquired 1 | . . . . . 1 . . Parts Built . | . . . . . . . . Authchips . | . . . . . . . . Time . | . . . . . . . . Total Part Build Rating . | . . . . . . . . Parts Repaired . | . . . . . . . . Time . | . . . . . . . . Parts Recycled . | . . . . . . . . Recycled Matter . | . . . . . . . . Retrieved Matter . | . . . . . . . . Retrieved Components . | . . . . . . . . Parts Scanalyzed . | . . . . . . . . Part Schematics Acquired . | . . . . . . . . Parts Damaged . | . . . . . . . . Bothacking | -11 -10 -10 -7 -7 -5 -5 -5 ------------ Run | Yrd Mat Sub Rec Scr Fac Upp Upp Used RIF Installer . | . . . . . . . . Robots Hacked . | . . . . . . . . Non-combat . | . . . . . . . . Combat . | . . . . . . . . Robot Hacks Applied . | . . . . . . . . Relay Couplers Released . | . . . . . . . . Fabnet Peak Effective % . | . . . . . . . . Robots Rewired . | . . . . . . . . Allies Hacked . | . . . . . . . . Hacks Repelled . | . . . . . . . . Allies | -11 -10 -10 -7 -7 -5 -5 -5 -------- Run | Yrd Mat Sub Rec Scr Fac Upp Upp Total Allies . | . . . . . . . . Largest Group . | . . . . . . . . Highest-Rated Group . | . . . . . . . . Highest-Rated Ally . | . . . . . . . . Total Orders . | . . . . . . . . Ally Attacks . | . . . . . . . . Total Damage . | . . . . . . . . Kills . | . . . . . . . . Allies Corrupted . | . . . . . . . . Allies Melted . | . . . . . . . . Intel | -11 -10 -10 -7 -7 -5 -5 -5 ------- Run | Yrd Mat Sub Rec Scr Fac Upp Upp Robot Analysis Total 2 | . 2 . . . . . . Derelict Logs Recovered 7 | . . 2 . 5 . . . Drone Launches . | . . . . . . . . Drone Recoveries . | . . . . . . . . Exploration | -11 -10 -10 -7 -7 -5 -5 -5 ------------- Run | Yrd Mat Sub Rec Scr Fac Upp Upp Turns Passed 7259 | 44 726 1207 266 1938 2123 937 18 Spaces Moved 5460 | 39 668 1106 224 1688 1215 517 3 Core 9 | 5 . . . . 3 . 1 Treads . | . . . . . . . . Legs . | . . . . . . . . Wheels 5451 | 34 668 1106 224 1688 1212 517 2 Hover . | . . . . . . . . Flight . | . . . . . . . . Fastest Speed 50 | 50 80 95 110 107 107 110 50 Average Speed 114 | 76 85 99 115 113 128 157 125 Slowest Speed 1050 | 80 125 125 120 130 1050 170 170 Overloaded Moves . | . . . . . . . . Propulsion Burnouts . | . . . . . . . . Robots Hopped . | . . . . . . . . Cave-ins Triggered . | . . . . . . . . Exploration Rate (%) 47 | 3 90 71 37 91 28 54 3 Regions Visited 7 Branch Regions 5 Pre-discovered Areas 8 | . . 2 . 6 . . . Known Exits Taken 3 | . . . . 1 1 1 . Unknown Exits Taken 4 | 1 1 1 1 . . . . Scrap Searched 16 | . . 9 . 6 . 1 . Spaces Dug 31 | . 22 . . . 8 1 . Terrain Destroyed 355 | . 73 59 . . 29 194 . Melee 1 | . . . . . 1 . . Projectile 31 | . . . . . 28 3 . AOE 323 | . 73 59 . . . 191 . Terrain Rammed . | . . . . . . . . Walls Destroyed . | . . . . . . . . Machines Disabled . | . . . . . . . . Actions | -11 -10 -10 -7 -7 -5 -5 -5 --------- Run | Yrd Mat Sub Rec Scr Fac Upp Upp Total 6194 | 53 756 1174 233 1708 1682 577 11 Wait 320 | . 24 8 1 . 287 . . Move 5453 | 38 667 1105 223 1687 1214 516 3 Hop . | . . . . . . . . Pick Up 91 | 10 11 18 4 5 37 6 . Fast Attach 21 | . . 2 1 3 15 . . Attach 51 | 5 3 6 . . 24 11 2 Detach 4 | . . . . 1 1 2 . Swap 15 | . 4 3 . 2 5 1 . Drop 52 | . 6 7 4 10 25 . . Fire 169 | . 41 25 . . 57 40 6 Melee 18 | . . . . . 17 1 . Ram . | . . . . . . . . Kick . | . . . . . . . . Crush . | . . . . . . . . Escape Stasis . | . . . . . . . . Rewire . | . . . . . . . . Trap . | . . . . . . . . Miscellaneous . | . . . . . . . . Route ------- -11/Scrapyard -10/Materials (discovered 5 exits: [*Mat x2] / [*Min x2] / [*Sub]) -10/Subcaves (discovered 2 exits: [*Mat] / *Rec) -7/Recycling -7/Scraptown (discovered 2 exits: *Fac x2) -5/Factory (discovered 3 exits: *Fac x2 / *Upp) -5/Upper Caves -5/Upper Caves (discovered 2 exits: Fac / Zhi) History --------- Turn | Location | Event 25 | -11/Scrapyard | Discovered new exit (range 16) 45 | -11/Scrapyard | Entered Materials 173 | -10/Materials | Discovered new exit (range 8) 229 | -10/Materials | Central database locked down 311 | -10/Materials | Build established: Mutant 514 | -10/Materials | Discovered new exit (range 9) 643 | -10/Materials | Discovered new exit (range 11) 694 | -10/Materials | Discovered new exit (range 12) 761 | -10/Materials | Discovered new exit (range 8) 771 | -10/Materials | Entered Subcaves 774 | -10/Subcaves | Shifting Twisted Machinery released Sub. Machine Gun 780 | -10/Subcaves | Shifting Twisted Machinery released Multitool 822 | -10/Subcaves | Discovered new exit (range 8) 1021 | -10/Subcaves | Learned location of Storage (-7) 1568 | -10/Subcaves | Lost 3 parts (1n1u1w) 1753 | -10/Subcaves | Learned location of Zion (-7) 1753 | -10/Subcaves | Met a Zionite searching for "candidates" 1772 | -10/Subcaves | Discovered new exit (range 16) 1780 | -10/Subcaves | Core integrity fell below 50% 1798 | -10/Subcaves | Learned Materials security intel 1903 | -10/Subcaves | Disturbed a concealed Subdweller 1942 | -10/Subcaves | Lost 3 parts (1n1u1w) 1978 | -10/Subcaves | Entered Recycling 2207 | -7/Recycling | Scanned before Scraplab entrance 2233 | -7/Recycling | Discovered new exit (range 2) 2244 | -7/Recycling | Entered Scraptown 2410 | -7/Scraptown | Visited UFD Registry 2410 | -7/Scraptown | Registered with UFD as "Pipefunk" 2444 | -7/Scraptown | Visited Symbiants 2694 | -7/Scraptown | Scanned Subdweller tech in exchange for log data 2697 | -7/Scraptown | Learned Research emergency access door positions 2699 | -7/Scraptown | Learned Factory emergency access door positions 2700 | -7/Scraptown | Learned location of Testing (-3) 2710 | -7/Scraptown | Discovered new exit (range 11) 2731 | -7/Scraptown | Guru changed UFD alias to "Gammabot" 2784 | -7/Scraptown | Visited Assassins FH 2807 | -7/Scraptown | Visited Shadow of the Wyrm 2828 | -7/Scraptown | Visited Comm Corps 2912 | -7/Scraptown | Visited CPS Storage 2953 | -7/Scraptown | Visited Cyclists 2969 | -7/Scraptown | Entered Cyclist Reading Room 3036 | -7/Scraptown | Visited Observation Area 3059 | -7/Scraptown | Visited Curators Association 3103 | -7/Scraptown | Visited Scrapoid Research Area 3304 | -7/Scraptown | Visited DA-N13 Charitable Foundation 3309 | -7/Scraptown | Found DCF Scrap (26 items) 3352 | -7/Scraptown | Visited Junk Repository 3394 | -7/Scraptown | Visited A0-MCA Data Center 3402 | -7/Scraptown | Given a B+ rating by A0-MCA 3405 | -7/Scraptown | Found A0-MCA's Component Scanner 3444 | -7/Scraptown | Visited Junk Cannon Lab 3455 | -7/Scraptown | Found Junk Cannon 3489 | -7/Scraptown | Visited Cartography Club 3520 | -7/Scraptown | Found Surveybot 17 Chip 3571 | -7/Scraptown | Learned location of Lower Caves (-7) 3571 | -7/Scraptown | Learned location of Upper Caves (-5) 3571 | -7/Scraptown | Learned location of Cetus (-6) 3571 | -7/Scraptown | Learned location of Archives (-6) 3571 | -7/Scraptown | Learned 16 Factory zone layouts 3571 | -7/Scraptown | Learned 8 Research zone layouts 3571 | -7/Scraptown | Learned 12 Lower Caves zone layouts 3571 | -7/Scraptown | Learned 16 Proximity Caves zone layouts 3571 | -7/Scraptown | Learned 8 Upper Caves zone layouts 3571 | -7/Scraptown | Learned 4 Hub_04(d) zone layouts 3571 | -7/Scraptown | Learned location of 2 exits from Lower Caves 3571 | -7/Scraptown | Learned location of 1 exit from Upper Caves 3571 | -7/Scraptown | Learned location of 3 exits from Upper Caves 3571 | -7/Scraptown | Identified exit to Factory 3972 | -7/Scraptown | Visited Fellowship of the Rings 4182 | -7/Scraptown | Entered Factory 4182 | -5/Factory | Evolved 10 slots: Power x1, Utility x7, Weapon x2 4183 | -5/Factory | Identified exit to Factory 4183 | -5/Factory | Identified exit to Upper Caves 4591 | -5/Factory | Build established: Hacker-Tank 5386 | -5/Factory | System corruption reached 10% 5428 | -5/Factory | Lost 15 parts (3p1n5u6w) 5612 | -5/Factory | Core integrity fell below 50% 5918 | -5/Factory | Build established: Scavenger-Gunner 6305 | -5/Factory | Entered Upper Caves 6306 | -5/Upper Caves | Identified exit to Upper Caves 6468 | -5/Upper Caves | Lost 5 parts (2n2u1w) 6666 | -5/Upper Caves | Lost 3 parts (1p1n1u) 6835 | -5/Upper Caves | Spotted B-75 Beast 6913 | -5/Upper Caves | Destroyed B-75 Beast 6941 | -5/Upper Caves | Lost 3 parts (1p1n1w) 7140 | -5/Upper Caves | Encountered a Warlord checkpoint 7199 | -5/Upper Caves | Build established: Gunner 7242 | -5/Upper Caves | Entered another Upper Caves area 7242 | -5/Upper Caves | Spotted B-75 Beast 7243 | -5/Upper Caves | Identified exit to Zhirov 7255 | -5/Upper Caves | Core integrity fell below 20% 7260 | -5/Upper Caves | Released all parts (6) 7260 | -5/Upper Caves | Destroyed by B-75 Beast with Magnetic Acceleration Cannon Last Messages --------------- Destroyed Carbon-fiber Leg. L-41 Fighter knocked back. HV Slug penetrates L-41 Fighter. CPS Tube expended. CPS modules attach to L-41 Fighter. HV Slug penetrates Wall. Hvy. Laser fries itself beyond repair. A0-MCA's Component Scanner destroyed. Imp. Heat Sink destroyed. Mak. System Shield destroyed. Lgt. Angular Momentum Engine fries itself beyond repair. Hyp. Gauss Cannon severed. Released Imp. Deuterium Engine. Released Imp. Target Analyzer. Released Lrg. Storage Unit. Released Surveybot 17 Chip. Released Core Analyzer. Released Imp. Weapon Cycler. Critical hit (Meltdown: +310). Map ----- +----------------------------------------------------+ | ?????????????????????????????????????????????????? | | ?????????????????????????????????????????????????? | | ?????????????????????????????????????????????????? | | ?????????????????????????????????????????????????? | | ?????????????????????????????????????????????????? | | ?????????????????????????????????????????????????? | | ?????????????????????????????????????????????????? | | ?????????????????????????????????????????????????? | | ?????????????????????????????????????????????????? | | ?????????????????????????????????????????????????? | | ?????????????????????????????????????????????????? | | ?????????????????????????????????????????????????? | | ?????????????????????????????????????????????????? | | ?????????????????????????????????????????????????? | | ?????????????????????????????????????????????????? | | ?????????????????????????????????????????????????? | | ?????????????????????????????????????????????????? | | ?????????????????????????????????????????????????? | | ?????????????????????????????????????????????????? | | ?????????????????????????????????????????????????? | | ????????????????????##???????????????????????????? | | ???????????????????## ###????????????????????????? | | ???????????????????# ##???????????????????????? | | ???????????# #### % l!######### #??????????? | | ???????????# %!]%! S #??????????? | | ???????? !*@ #?????????? | | ???????? BB ;;###!%= ######## #?????????? | | ???????? ??????# g #??????????????????????? | | ????????? ?????????#### #??????????????????????? | | ???????????????????????# #??????????????????????? | | ???????????????????????# #??????????????????????? | | ???????????????????????## #??????????????????????? | | ???????????????????????? ??????????????????????? | | ????????????????????????# ??????????????????????? | | ????????????????????????? #?????????????????????? | | ????????????????????????? ?????????????????????? | | ????????????????????????? ?????????????????????? | | ?????????????????????????# #